fUSD/lending_fUSD_20260115
["ID","MTS","AMOUNT","RATE_DAILY","PERIOD"]
[402072000,1768507854996,-500.0,0.00035616,10]
[402072001,1768507855006,-500.0,0.00035616,10]
[402072002,1768507855016,-771.85,0.00035616,10]
[402072003,1768507855026,-500.0,0.00035616,10]
[402072004,1768507855036,-639.98,0.00035616,10]
[402072005,1768507855045,-1480.32,0.00035616,10]
[402072006,1768507855055,-462.68449964,0.00035616,10]
[402072007,1768507855064,-500.0,0.00035616,10]
[402072008,1768507855074,-500.0,0.00035616,10]
[402072009,1768507855087,-500.0,0.00035616,10]
[402072010,1768507855096,-500.0,0.00035616,10]
[402072011,1768507855106,-525.87,0.00035616,10]
[402072012,1768507855115,-1161.08,0.00035616,10]
[402072013,1768507855127,-838.05,0.00035616,10]
[402072014,1768507855136,-500.0,0.00035616,10]
[402072015,1768507855146,-500.0,0.00035616,10]
[402072016,1768507855156,-500.0,0.00035616,10]
[402072017,1768507855165,-500.0,0.00035616,120]
[402072018,1768507855175,-2994.73,0.00035616,10]
[402072019,1768507855185,-548.92,0.00035616,10]
[402072020,1768507855195,-887.63,0.00035616,10]
[402072021,1768507855206,-500.0,0.00035616,10]
[402072022,1768507855216,-1132.08,0.00035616,10]
[402072023,1768507855225,-655.51,0.00035616,10]
[402072024,1768507855235,-500.0,0.00035616,10]
[402072025,1768507855244,-1293.43,0.00035616,10]
[402072026,1768507855254,-502.53,0.00035616,10]
[402072027,1768507855264,-500.0,0.00035616,10]
[402072028,1768507855274,-1239.54,0.00035616,10]
[402072029,1768507855284,-899.07,0.00035616,10]
[402072030,1768507855293,-500.0,0.00035616,10]
[402072031,1768507855303,-500.0,0.00035616,10]
[402072032,1768507855312,-500.0,0.00035616,10]
[402072033,1768507855322,-500.0,0.00035616,10]
[402072034,1768507855331,-500.0,0.00035616,10]
[402072035,1768507855340,-500.0,0.00035616,10]
[402072036,1768507855351,-500.0,0.00035616,10]
[402072037,1768507855360,-1040.2,0.00035616,10]
[402072038,1768507855370,-500.0,0.00035616,10]
[402072039,1768507855379,-500.0,0.00035616,10]
[402072040,1768507855389,-500.0,0.00035616,10]
[402072041,1768507855398,-500.0,0.00035616,10]
[402072042,1768507855407,-500.0,0.00035616,10]
[402072043,1768507855416,-500.0,0.00035616,10]
[402072044,1768507855425,-420.45220443,0.00035616,10]
[402072045,1768507855434,-500.0,0.00035616,10]
[402072046,1768507855443,-500.0,0.00035616,10]
[402072047,1768507855453,-1777.61,0.00035616,10]
[402072048,1768507855462,-500.0,0.00035616,10]
[402072049,1768507855471,-500.0,0.00035616,10]
[402072050,1768507855479,-500.0,0.00035616,10]
[402072051,1768507855503,-385.34547215,0.00035616,10]
[402072052,1768507855522,-500.0,0.00035616,10]
[402072053,1768507855536,-575.94100607,0.00035616,10]
[402072054,1768507855553,-500.0,0.00035616,10]
[402072055,1768507855570,-902.63,0.00035616,10]
[402072056,1768507855586,-500.0,0.00035616,10]
[402072057,1768507855602,-1329.01,0.00035616,10]
[402072058,1768507855614,-1124.73,0.00035616,10]
[402072059,1768507855630,-500.0,0.00035616,10]
[402072060,1768507855645,-500.0,0.00035616,10]
[402072061,1768507855660,-500.0,0.00035616,10]
[402072062,1768507855675,-500.0,0.00035616,10]
[402072063,1768507855691,-500.0,0.00035616,10]
[402072064,1768507855706,-500.0,0.00035616,10]
[402072065,1768507855721,-500.0,0.00035616,10]
[402072066,1768507855735,-500.0,0.00035616,10]
[402072067,1768507855753,-1790.52,0.00035616,10]
[402072068,1768507855767,-506.22,0.00035616,10]
[402072069,1768507855782,-500.0,0.00035616,10]
[402072070,1768507855794,-2734.86,0.00035616,10]
[402072071,1768507855810,-500.0,0.00035616,10]
[402072072,1768507855823,-2078.68,0.00035616,10]
[402072073,1768507855835,-682.0,0.00035616,10]
[402072074,1768507855849,-573.95,0.00035616,10]
[402072075,1768507855865,-1177.72,0.00035616,10]
[402072076,1768507855877,-799.97,0.00035616,10]
[402072077,1768507855889,-500.0,0.00035616,10]
[402072078,1768507855903,-500.0,0.00035616,10]
[402072079,1768507855917,-1030.52,0.00035616,10]
[402072080,1768507855932,-500.0,0.00035616,10]
[402072081,1768507855948,-548.7,0.00035616,10]
[402072082,1768507855970,-500.0,0.00035616,10]
[402072083,1768507855984,-500.0,0.00035616,10]
[402072084,1768507855997,-500.0,0.00035616,10]
[402072085,1768507856011,-500.0,0.00035616,10]
[402072086,1768507856026,-941.71,0.00035616,10]
[402072087,1768507856039,-1004.46,0.00035616,10]
[402072088,1768507856053,-500.0,0.00035616,10]
[402072089,1768507856067,-500.0,0.00035616,10]
[402072090,1768507856081,-505.51656545,0.00035616,10]
[402072091,1768507856096,-500.0,0.00035616,10]
[402072092,1768507856109,-500.0,0.00035616,10]
[402072093,1768507856123,-500.0,0.00035616,10]
[402072094,1768507856136,-500.0,0.00035616,10]
[402072095,1768507856151,-4525.94,0.00035616,10]
[402072096,1768507856165,-791.78,0.00035616,10]
[402072097,1768507856178,-500.0,0.00035616,10]
[402072098,1768507856191,-500.0,0.00035616,10]
[402072099,1768507856204,-500.0,0.00035616,10]
[402072100,1768507856217,-572.1,0.00035616,10]
[402072101,1768507856230,-713.0,0.00035616,10]
[402072102,1768507856243,-500.0,0.00035616,10]
[402072103,1768507856256,-545.05,0.00035616,10]
[402072104,1768507856269,-640.85,0.00035616,10]
[402072105,1768507856282,-500.0,0.00035616,10]
[402072106,1768507856295,-500.0,0.00035616,10]
[402072107,1768507856308,-751.0,0.00035616,10]
[402072108,1768507856321,-500.0,0.00035616,10]
[402072109,1768507856333,-151.0,0.00035616,31]
[402072110,1768507856346,-1093.44,0.00035616,10]
[402072111,1768507856360,-617.24,0.00035616,10]
[402072112,1768507856373,-507.09,0.00035616,10]
[402072113,1768507856387,-263.01171019,0.00035616,10]
[402072114,1768507856400,-802.41,0.00035616,10]
[402072115,1768507856413,-500.0,0.00035616,10]
[402072116,1768507856425,-1894.16,0.00035616,10]
[402072117,1768507856439,-500.0,0.00035616,10]
[402072118,1768507856452,-500.0,0.00035616,10]
[402072119,1768507856466,-816.36,0.00035616,10]
[402072120,1768507856479,-500.0,0.00035616,10]
[402072121,1768507856491,-1118.71,0.00035616,10]
[402072122,1768507856504,-500.0,0.00035616,10]
[402072123,1768507856518,-500.0,0.00035616,10]
[402072124,1768507856530,-599.19,0.00035616,10]
[402072125,1768507856543,-500.0,0.00035616,10]
[402072126,1768507856557,-1549.06,0.00035616,10]
[402072127,1768507856571,-500.0,0.00035616,10]
[402072128,1768507856584,-877.07,0.00035616,10]
[402072129,1768507856597,-500.0,0.00035616,10]
[402072130,1768507856610,-548.31799833,0.00035616,10]
[402072131,1768507856623,-500.0,0.00035616,10]
[402072132,1768507856636,-500.0,0.00035616,10]
[402072133,1768507856649,-500.0,0.00035616,10]
[402072134,1768507856662,-500.0,0.00035616,10]
[402072135,1768507856676,-1992.55,0.00035616,10]
[402072136,1768507856689,-500.0,0.00035616,10]
[402072137,1768507856702,-1695.2,0.00035616,10]
[402072138,1768507856714,-1213.64,0.00035616,10]
[402072139,1768507856728,-500.0,0.00035616,10]
[402072140,1768507856742,-500.0,0.00035616,10]
[402072141,1768507856754,-505.37220207,0.00035616,10]
[402072142,1768507856767,-607.94,0.00035616,10]
[402072143,1768507856780,-739.72,0.00035616,10]
[402072144,1768507856793,-500.0,0.00035616,10]
[402072145,1768507856806,-500.0,0.00035616,10]
[402072146,1768507856819,-500.0,0.00035616,10]
[402072147,1768507856831,-500.0,0.00035616,10]
[402072148,1768507856844,-559.05,0.00035616,10]
[402072149,1768507856857,-500.0,0.00035616,10]
[402072150,1768507856869,-500.0,0.00035616,10]
[402072151,1768507856883,-500.0,0.00035616,10]
[402072152,1768507856896,-500.0,0.00035616,10]
[402072153,1768507856909,-838.02,0.00035616,10]
[402072154,1768507856923,-1886.05,0.00035616,10]
[402072155,1768507856936,-666.16,0.00035616,10]
[402072156,1768507856949,-500.0,0.00035616,10]
[402072157,1768507856961,-3808.11,0.00035616,10]
[402072158,1768507856974,-1403.97,0.00035616,10]
[402072159,1768507856987,-500.0,0.00035616,10]
[402072160,1768507857000,-500.0,0.00035616,10]
[402072161,1768507857012,-555.6,0.00035616,10]
[402072162,1768507857025,-500.0,0.00035616,10]
[402072163,1768507857038,-500.0,0.00035616,10]
[402072164,1768507857050,-500.0,0.00035616,10]
[402072165,1768507857063,-500.0,0.00035616,10]
[402072166,1768507857075,-500.0,0.00035616,10]
[402072167,1768507857089,-500.0,0.00035616,10]
[402072168,1768507857102,-500.0,0.00035616,10]
[402072169,1768507857114,-500.0,0.00035616,10]
[402072170,1768507857128,-500.0,0.00035616,10]
[402072171,1768507857140,-500.0,0.00035616,10]
[402072172,1768507857153,-233.7717832,0.00035616,10]
[402072173,1768507857166,-1279.89,0.00035616,10]
[402072174,1768507857179,-513.7386982,0.00035616,10]
[402072175,1768507857191,-500.0,0.00035616,10]
[402072176,1768507857203,-500.0,0.00035616,10]
[402072177,1768507857215,-500.0,0.00035616,10]
[402072178,1768507857228,-529.08953391,0.00035616,10]
[402072179,1768507857240,-500.0,0.00035616,10]
[402072180,1768507857252,-500.0,0.00035616,10]
[402072181,1768507857265,-1469.69,0.00035616,10]
[402072182,1768507857277,-2084.21,0.00035616,10]
[402072183,1768507857289,-500.0,0.00035616,10]
[402072184,1768507857302,-500.0,0.00035616,10]
[402072185,1768507857313,-500.0,0.00035616,10]
[402072186,1768507857326,-818.89,0.00035616,10]
[402072187,1768507857338,-916.39,0.00035616,10]
[402072188,1768507857350,-500.0,0.00035616,10]
[402072189,1768507857362,-500.0,0.00035616,10]
[402072190,1768507857376,-500.0,0.00035616,10]
[402072191,1768507857388,-500.0,0.00035616,10]
[402072192,1768507857399,-500.0,0.00035616,10]
[402072193,1768507857412,-500.0,0.00035616,10]
[402072194,1768507857424,-1930.51,0.00035616,10]
[402072195,1768507857436,-500.0,0.00035616,10]
[402072196,1768507857448,-653.49,0.00035616,10]
[402072197,1768507857460,-819.44,0.00035616,10]
[402072198,1768507857473,-500.0,0.00035616,10]
[402072199,1768507857486,-548.68983301,0.00035616,10]
[402072200,1768507857498,-500.0,0.00035616,10]
[402072201,1768507857510,-1459.76,0.00035616,10]
[402072202,1768507857522,-576.45,0.00035616,10]
[402072203,1768507857536,-500.0,0.00035616,10]
[402072204,1768507857548,-500.0,0.00035616,10]
[402072205,1768507857560,-1210.08,0.00035616,10]
[402072206,1768507857572,-500.0,0.00035616,10]
[402072207,1768507857586,-1095.45,0.00035616,10]
[402072208,1768507857603,-500.0,0.00035616,10]
[402072209,1768507857612,-1557.88,0.00035616,10]
[402072210,1768507857622,-501.21,0.00035616,10]
[402072211,1768507857631,-1004.14,0.00035616,10]
[402072212,1768507857639,-500.0,0.00035616,10]
[402072213,1768507857649,-927.77,0.00035616,10]
[402072214,1768507857658,-500.0,0.00035616,10]
[402072215,1768507857667,-9753.38,0.00035616,10]
[402072216,1768507857676,-685.54,0.00035616,10]
[402072217,1768507857686,-500.0,0.00035616,10]
[402072218,1768507857695,-563.54,0.00035616,10]
[402072219,1768507857704,-1890.94,0.00035616,10]
[402072220,1768507857713,-500.0,0.00035616,10]
[402072221,1768507857723,-2004.88,0.00035616,10]
[402072222,1768507857732,-500.0,0.00035616,10]
[402072223,1768507857742,-500.0,0.00035616,10]
[402072224,1768507857751,-1772.09,0.00035616,10]
[402072225,1768507857760,-500.0,0.00035616,10]
[402072226,1768507857769,-514.88,0.00035616,10]
[402072227,1768507857778,-2822.21,0.00035616,10]
[402072228,1768507857788,-500.0,0.00035616,10]
[402072229,1768507857797,-1109.41,0.00035616,10]
[402072230,1768507857806,-653.97,0.00035616,10]
[402072231,1768507857815,-502.93,0.00035616,10]
[402072232,1768507857825,-500.0,0.00035616,10]
[402072233,1768507857834,-1541.52,0.00035616,10]
[402072234,1768507857843,-500.0,0.00035616,10]
[402072235,1768507857853,-500.0,0.00035616,10]
[402072236,1768507857862,-500.0,0.00035616,10]
[402072237,1768507857873,-991.25,0.00035616,10]
[402072238,1768507857883,-150.0,0.00035616,7]
[402072239,1768507857893,-500.0,0.00035616,10]
[402072240,1768507857902,-557.9735435,0.00035616,10]
[402072241,1768507857912,-500.0,0.00035616,10]
[402072242,1768507857921,-371.925329,0.00035616,7]
[402072243,1768507857931,-500.0,0.00035616,10]
[402072244,1768507857940,-500.0,0.00035616,10]
[402072245,1768507858427,-371.925329,0.00035616,7]
[402072246,1768507858461,-500.0,0.00035616,10]
[402072247,1768507858483,-500.0,0.00035616,10]
[402072248,1768507858493,-371.925329,0.00035616,7]
[402072249,1768507858502,-500.0,0.00035616,10]
[402072250,1768507858512,-1883.29,0.00035616,10]
[402072251,1768507858522,-599.29,0.00035616,10]
[402072252,1768507858531,-607.44,0.00035616,10]
[402072253,1768507858540,-371.925329,0.00035616,7]
[402072254,1768507858549,-500.0,0.00035616,10]
[402072255,1768507858558,-500.0,0.00035616,10]
[402072256,1768507858567,-500.0,0.00035616,10]
[402072257,1768507858576,-500.0,0.00035616,10]
[402072258,1768507858585,-7.09949259,0.00035616,10]
[402072259,1768507858612,-814.99050741,0.00035616,10]
[402072260,1768507858621,-631.42996771,0.00035616,10]
[402072261,1768507858633,-270.91003229,0.00035616,10]
[402072262,1768507858643,-1124.64210771,0.00035616,10]
[402072263,1768507858654,-182.10789229,0.00035616,10]
[402072264,1768507858664,-500.0,0.00035616,10]
[402072265,1768507858673,-500.0,0.00035616,10]
[402072266,1768507858682,-472.72995432,0.00035616,10]
[402072267,1768507858993,-656.4361195,0.00035616,10]
[402072268,1768507859004,-234.07392618,0.00035616,10]
[402072269,1768507859014,-500.0,0.00035616,10]
[402072270,1768507859023,-396.70214582,0.00035616,10]
[402072271,1768507859034,-284.06000002,0.00035616,10]
[402072272,1768507859045,-809.74516329,0.00035616,10]
[402072273,1768507859066,-3.23269087,0.00035616,10]
[402072274,1768507859077,-544.46,0.00035616,10]
[402072275,1768507859090,-165.03542769,0.00035616,10]
[402072276,1768507859107,-1389.70457231,0.00035616,10]
[402072277,1768507859116,-500.0,0.00035616,10]
[402072278,1768507859126,-500.0,0.00035616,10]
[402072279,1768507859135,-907.43,0.00035616,10]
[402072280,1768507859144,-500.0,0.00035616,10]
[402072281,1768507859156,-500.0,0.00035616,10]
[402072282,1768507859165,-741.09,0.00035616,10]
[402072283,1768507859174,-500.0,0.00035616,10]
[402072284,1768507859183,-764.0,0.00035616,10]
[402072285,1768507859192,-1815.78,0.00035616,10]
[402072286,1768507859202,-500.0,0.00035616,10]
[402072287,1768507859211,-400.81798378,0.00035616,5]
[402072288,1768507859220,-500.0,0.00035616,10]
[402072289,1768507859229,-3188.19,0.00035616,10]
[402072290,1768507859239,-2497.75,0.00035616,10]
[402072291,1768507859248,-500.0,0.00035616,10]
[402072292,1768507859257,-1579.75,0.00035616,10]
[402072293,1768507859266,-1111.93,0.00035616,10]
[402072294,1768507859275,-500.0,0.00035616,10]
[402072295,1768507859284,-428.1217249,0.00035616,10]
[402072296,1768507859293,-1140.38,0.00035616,10]
[402072297,1768507859302,-625.5,0.00035616,10]
[402072298,1768507859312,-799.43,0.00035616,10]
[402072299,1768507859321,-500.0,0.00035616,10]
[402072300,1768507859330,-500.0,0.00035616,10]
[402072301,1768507859339,-500.0,0.00035616,10]
[402072302,1768507859348,-839.5,0.00035616,10]
[402072303,1768507859359,-500.0,0.00035616,10]
[402072304,1768507859368,-500.0,0.00035616,10]
[402072305,1768507859379,-500.0,0.00035616,10]
[402072306,1768507859388,-1003.07,0.00035616,10]
[402072307,1768507859398,-500.0,0.00035616,10]
[402072308,1768507859409,-582.51,0.00035616,10]
[402072309,1768507859418,-500.0,0.00035616,10]
[402072310,1768507859429,-500.0,0.00035616,10]
[402072311,1768507859439,-500.0,0.00035616,10]
[402072312,1768507859449,-500.0,0.00035616,10]
[402072313,1768507859459,-500.0,0.00035616,10]
[402072314,1768507859470,-500.0,0.00035616,10]
[402072315,1768507859480,-500.0,0.00035616,10]
[402072316,1768507859492,-1947.55,0.00035616,10]
[402072317,1768507859501,-500.0,0.00035616,10]
[402072318,1768507859510,-500.0,0.00035616,10]
[402072319,1768507859521,-500.0,0.00035616,10]
[402072320,1768507859531,-631.02169384,0.00035616,10]
[402072321,1768507859540,-500.0,0.00035616,10]
[402072322,1768507859549,-500.0,0.00035616,10]
[402072323,1768507859559,-1220.86,0.00035616,10]
[402072324,1768507859567,-500.0,0.00035616,10]
[402072325,1768507859577,-500.0,0.00035616,10]
[402072326,1768507859586,-1212.65,0.00035616,10]
[402072327,1768507859595,-500.0,0.00035616,10]
[402072328,1768507859605,-966.88,0.00035616,10]
[402072329,1768507859614,-403.815606,0.00035616,10]
[402072330,1768507859624,-500.0,0.00035616,10]
[402072331,1768507859634,-500.0,0.00035616,10]
[402072332,1768507859644,-500.0,0.00035616,10]
[402072333,1768507859653,-500.0,0.00035616,10]
[402072334,1768507859663,-500.0,0.00035616,10]
[402072335,1768507859672,-500.0,0.00035616,10]
[402072336,1768507859681,-500.0,0.00035616,10]
[402072337,1768507859690,-500.0,0.00035616,10]
[402072338,1768507859701,-500.0,0.00035616,10]
[402072339,1768507859710,-500.0,0.00035616,10]
[402072340,1768507859720,-2666.19,0.00035616,10]
[402072341,1768507859729,-500.0,0.00035616,10]
[402072342,1768507859739,-500.0,0.00035616,10]
[402072343,1768507859748,-2248.41,0.00035616,10]
[402072344,1768507859757,-1387.09,0.00035616,10]
[402072345,1768507859767,-995.01,0.00035616,10]
[402072346,1768507859776,-3043.23,0.00035616,10]
[402072347,1768507859786,-3392.42,0.00035616,10]
[402072348,1768507859796,-500.0,0.00035616,10]
[402072349,1768507859810,-300.14339767,0.00035616,10]
[402072350,1768507859820,-500.0,0.00035616,10]
[402072351,1768507859829,-500.0,0.00035616,10]
[402072352,1768507859838,-500.0,0.00035616,10]
[402072353,1768507859848,-500.0,0.00035616,10]
[402072354,1768507859857,-500.0,0.00035616,10]
[402072355,1768507859866,-599.18,0.00035616,10]
[402072356,1768507859876,-500.0,0.00035616,5]
[402072357,1768507859887,-1018.31,0.00035616,10]
[402072358,1768507859896,-500.0,0.00035616,10]
[402072359,1768507859906,-500.0,0.00035616,10]
[402072360,1768507859915,-500.0,0.00035616,10]
[402072361,1768507859925,-500.0,0.00035616,10]
[402072362,1768507859934,-500.0,0.00035616,10]
[402072363,1768507859946,-512.75,0.00035616,10]
[402072364,1768507859956,-500.0,0.00035616,10]
[402072365,1768507859966,-500.0,0.00035616,10]
[402072366,1768507859976,-500.0,0.00035616,10]
[402072367,1768507859986,-498.69779716,0.00035616,10]
[402072368,1768507859996,-973.66,0.00035616,10]
[402072369,1768507860006,-756.96,0.00035616,10]
[402072370,1768507860016,-500.0,0.00035616,10]
[402072371,1768507860027,-1198.69,0.00035616,10]
[402072372,1768507860036,-2299.0,0.00035616,10]
[402072373,1768507860046,-500.0,0.00035616,10]
[402072374,1768507860056,-884.19,0.00035616,10]
[402072375,1768507860066,-1448.28,0.00035616,10]
[402072376,1768507860077,-630.74,0.00035616,10]
[402072377,1768507860089,-547.27401254,0.00035616,3]
[402072378,1768507860101,-500.0,0.00035616,10]
[402072379,1768507860112,-1516.89,0.00035616,10]
[402072380,1768507860131,-500.0,0.00035616,2]
[402072381,1768507860151,-500.0,0.00035616,10]
[402072382,1768507860172,-1129.07,0.00035616,10]
[402072383,1768507860195,-889.4,0.00035616,10]
[402072384,1768507860204,-500.0,0.00035616,10]
[402072385,1768507860215,-500.0,0.00035616,10]
[402072386,1768507860224,-929.92,0.00035616,10]
[402072387,1768507860233,-500.0,0.00035616,10]
[402072388,1768507860243,-500.0,0.00035616,10]
[402072389,1768507860252,-500.0,0.00035616,10]
[402072390,1768507860262,-1280.23,0.00035616,10]
[402072391,1768507860272,-500.0,0.00035616,10]
[402072392,1768507860282,-500.0,0.00035616,10]
[402072393,1768507860291,-500.0,0.00035616,10]
[402072394,1768507860301,-669.6,0.00035616,10]
[402072395,1768507860311,-500.0,0.00035616,10]
[402072396,1768507860320,-760.23,0.00035616,10]
[402072397,1768507860330,-500.0,0.00035616,10]
[402072398,1768507860340,-535.72,0.00035616,10]
[402072399,1768507860350,-500.0,0.00035616,10]
[402072400,1768507860360,-500.0,0.00035616,10]
[402072401,1768507860369,-2116.27,0.00035616,10]
[402072402,1768507860379,-868.65,0.00035616,10]
[402072403,1768507860388,-500.0,0.00035616,10]
[402072404,1768507860398,-1283.87,0.00035616,10]
[402072405,1768507860408,-500.0,0.00035616,5]
[402072406,1768507860419,-750.23,0.00035616,10]
[402072407,1768507860429,-500.0,0.00035616,10]
[402072408,1768507860439,-798.61,0.00035616,10]
[402072409,1768507860450,-500.0,0.00035616,10]
[402072410,1768507860460,-500.0,0.00035616,10]
[402072411,1768507860469,-500.0,0.00035616,10]
[402072412,1768507860480,-608.54,0.00035616,10]
[402072413,1768507860490,-500.0,0.00035616,10]
[402072414,1768507860500,-500.0,0.00035616,10]
[402072415,1768507860510,-1305.82,0.00035616,10]
[402072416,1768507860520,-500.0,0.00035616,10]
[402072417,1768507860530,-500.0,0.00035616,10]
[402072418,1768507860540,-696.57,0.00035616,10]
[402072419,1768507860549,-500.0,0.00035616,10]
[402072420,1768507860559,-500.0,0.00035616,10]
[402072421,1768507860569,-500.0,0.00035616,10]
[402072422,1768507860579,-500.0,0.00035616,10]
[402072423,1768507860588,-500.0,0.00035616,10]
[402072424,1768507860598,-500.0,0.00035616,10]
[402072425,1768507860607,-744.45,0.00035616,10]
[402072426,1768507860618,-500.0,0.00035616,10]
[402072427,1768507860628,-500.0,0.00035616,10]
[402072428,1768507860640,-3344.16,0.00035616,10]
[402072429,1768507860650,-500.0,0.00035616,10]
[402072430,1768507860660,-509.00248316,0.00035616,10]
[402072431,1768507860670,-500.0,0.00035616,10]
[402072432,1768507860680,-500.0,0.00035616,10]
[402072433,1768507860690,-500.0,0.00035616,10]
[402072434,1768507860700,-1522.18,0.00035616,10]
[402072435,1768507860710,-503.64878325,0.00035616,10]
[402072436,1768507860720,-500.0,0.00035616,10]
[402072437,1768507860730,-500.0,0.00035616,10]
[402072438,1768507860742,-500.0,0.00035616,10]
[402072439,1768507860752,-600.0,0.00035616,2]
[402072440,1768507860763,-1442.5,0.00035681,7]
[402072441,1768507860774,-453.93858594,0.00035723,2]
[402072442,1768507860785,-151.0,0.000358,31]
[402072443,1768507860795,-206.836097,0.000358,31]
[402072444,1768507860806,-1998.88306,0.000358,70]
[402072445,1768507860816,-1998.88306,0.000358,70]
[402072446,1768507860827,-1998.88307,0.000358,70]
[402072447,1768507860837,-1998.88307,0.000358,70]
[402072448,1768507860846,-3781.1888042,0.00035854,2]
[402072449,1768507860856,-200.0,0.00035875,10]
[402072450,1768507860865,-600.0,0.00035875,7]
[402072451,1768507860875,-156.652895,0.0003589,10]
[402072452,1768507860885,-239.185561,0.0003589,10]
[402072453,1768507860895,-160.040885,0.0003589,10]
[402072454,1768507860905,-516.55042978,0.0003589,10]
[402072455,1768507860915,-265.01056077,0.0003589,10]
[402072456,1768507860925,-444.14187563,0.0003589,10]
[402072457,1768507860935,-500.0,0.0003589,10]
[402072458,1768507860944,-500.0,0.0003589,10]
[402072459,1768507860954,-500.0,0.0003589,10]
[402072460,1768507860964,-500.0,0.0003589,10]
[402072461,1768507860974,-500.0,0.0003589,10]
[402072462,1768507860984,-171.36242817,0.0003589,10]
[402072463,1768507860994,-500.0,0.0003589,10]
[402072464,1768507861005,-764.69,0.0003589,10]
[402072465,1768507861015,-500.0,0.0003589,10]
[402072466,1768507861025,-505.11100101,0.0003589,10]
[402072467,1768507861036,-500.0,0.0003589,10]
[402072468,1768507861046,-500.0,0.0003589,10]
[402072469,1768507861056,-500.0,0.0003589,10]
[402072470,1768507861066,-777.71,0.0003589,10]
[402072471,1768507861076,-154.48493676,0.0003589,10]
[402072472,1768507861089,-500.0,0.0003589,10]
[402072473,1768507861098,-500.0,0.0003589,10]
[402072474,1768507861108,-500.0,0.0003589,10]
[402072475,1768507861118,-500.0,0.0003589,10]
[402072476,1768507861127,-500.0,0.0003589,10]
[402072477,1768507861138,-538.4,0.0003589,10]
[402072478,1768507861148,-500.0,0.0003589,10]
[402072479,1768507861160,-500.0,0.0003589,10]
[402072480,1768507861169,-500.0,0.0003589,10]
[402072481,1768507861178,-500.0,0.0003589,10]
[402072482,1768507861188,-500.0,0.0003589,10]
[402072483,1768507861199,-500.0,0.0003589,10]
[402072484,1768507861210,-500.0,0.0003589,10]
[402072485,1768507861220,-500.0,0.0003589,10]
[402072486,1768507861230,-500.0,0.0003589,10]
[402072487,1768507861240,-469.65551113,0.0003589,10]
[402072488,1768507861249,-500.0,0.0003589,10]
[402072489,1768507861259,-500.0,0.0003589,10]
[402072490,1768507861269,-549.88686106,0.0003589,10]
[402072491,1768507861278,-500.0,0.0003589,10]
[402072492,1768507861289,-500.0,0.0003589,10]
[402072493,1768507861299,-500.0,0.0003589,10]
[402072494,1768507861309,-500.0,0.0003589,10]
[402072495,1768507861318,-1281.79,0.0003589,10]
[402072496,1768507861328,-500.0,0.0003589,10]
[402072497,1768507861338,-500.0,0.0003589,10]
[402072498,1768507861348,-500.0,0.0003589,10]
[402072499,1768507861358,-500.0,0.0003589,10]